Cogmind - Beta 13 @@@ ROGUE MODE // 2024.04.06 @ 18:06:26 Player: Abkaal Result: Destroyed by P-70 Sage with High-powered Shock Rifle Performance ------------- Evolutions (5) 2500 Regions Visited (16) 3200 Robots Destroyed (136) 680 Value Destroyed (7138) 7138 Prototype IDs (35) 700 Alien Tech Used (0) 0 Bonus (5245) 5245 TOTAL SCORE: 19463 Bonus ------- High Alert Combat Kills 1238 Follower Combat Kills 707 Entered Garrisons 1000 Used RIF Installer 2000 Aligned with FarCom 300 Cogmind --------- Core Integrity 0/1000 Matter 265/300 Energy 41/100 System Corruption 15% Temperature Cool (0) Movement Treading (160) Location -5/Factory Parts ------- > --- POWER (2) -------- (None) > --- PROPULSION (4) --- Medium Treads Medium Treads > --- UTILITY (7) ------ Target Analyzer Advanced ECM Suite Relay Coupler [Grunt] (29) > --- WEAPON (4) ------- Heavy Ion Cannon > --- INVENTORY (5) ---- Micro Nuclear Core Light Fission Core Improved Weapon Cycler Flak Gun Heavy Gauss Cannon Peak State ------------ > --- POWER ------------ Light Angular Momentum Engine Neutrino Core > --- PROPULSION ------- Medium Treads Improved Medium Treads Heavy Treads > --- UTILITY ---------- Large Storage Unit Advanced Melee Analysis Suite Target Analyzer Microactuators Improved Light Armor Plating Advanced Force Field Relay Coupler [Behemoth] > --- WEAPON ----------- Improved Datajack Axe Axe Enhanced Force Lance > --- INVENTORY -------- Micro Nuclear Core Micro Antimatter Reactor Improved Treads Advanced Treads Medium Treads Biometal Medium Treads Q-thruster Advanced Heat Sink Improved Light Armor Plating Improved Shock Absorption System Relay Coupler [Sentry] Relay Coupler [Hunter] Gatling Laser Flak Gun Linear Accelerator [Rating: 86] Favorites ----------- Power Light Nuclear Core Engine Ion Engine Power Core Light Nuclear Core Reactor Micro Antimatter Reactor Propulsion Medium Treads Treads Medium Treads Leg Aluminum Leg Wheel Compact Wheel Flight Unit Flying Fortress v7 Utility Large Storage Unit Device Microactuators Storage Large Storage Unit Processor Advanced Melee Analysis Suite Hackware Relay Coupler [Sentry] Protection Improved Medium Armor Plating Weapon Enhanced Force Lance Energy Gun Medium Laser Energy Cannon Beam Cannon Ballistic Gun Assault Rifle Ballistic Cannon Linear Accelerator Launcher Rocket Launcher Special Weapon Remote Datajack Slashing Weapon Ripper Piercing Weapon Enhanced Force Lance Special Melee Weapon Improved Datajack Build | -11 -10 -10 -10 -9 -8 -8 -7 -7 -7 -7 -6 -6 -6 -5 -5 -5 ------- Run | Yrd Mat Min Exi Min Mat Gar Fac Gar Fac Gar Fac Gar Fac Fac Gar Fac Slots Evolved 10 | . . . . . 4 . 2 . . . 2 . . 2 . . Power 1 | . . . . . . . . . . . 1 . . . . . Propulsion 2 | . . . . . 2 . . . . . . . . . . . Utility 5 | . . . . . 2 . 2 . . . . . . 1 . . Weapon 2 | . . . . . . . . . . . 1 . . 1 . . Parts Attached 209 | 6 23 . . 3 13 8 6 9 11 17 10 30 7 4 47 15 Power 28 | 1 3 . . . 1 1 . 3 . 1 1 7 1 . 7 2 Engine 13 | 1 3 . . . . . . 3 . 1 . 4 . . 1 . Core 13 | . . . . . 1 1 . . . . 1 2 1 . 5 2 Reactor 2 | . . . . . . . . . . . . 1 . . 1 . Propulsion 70 | 2 11 . . 1 5 4 1 . 3 8 4 6 6 1 13 5 Treads 41 | 2 . . . . . 1 . . . 4 4 6 5 1 13 5 Leg 15 | . 8 . . . 4 3 . . . . . . . . . . Wheel 4 | . 3 . . 1 . . . . . . . . . . . . Hover . | . . . . . . . . . . . . . . . . . Flight 10 | . . . . . 1 . 1 . 3 4 . . 1 . . . Utility 55 | 1 5 . . . 3 1 4 5 3 2 1 6 . 1 19 4 Device 17 | . . . . . 2 . 2 . 1 . . 3 . 1 5 3 Storage 3 | 1 2 . . . . . . . . . . . . . . . Processor 5 | . 1 . . . . 1 . 1 . . 1 1 . . . . Hackware 10 | . . . . . . . 1 3 . 1 . 1 . . 4 . Protection 20 | . 2 . . . 1 . 1 1 2 1 . 1 . . 10 1 Artifact . | . . . . . . . . . . . . . . . . . Weapon 56 | 2 4 . . 2 4 2 1 1 5 6 4 11 . 2 8 4 Energy Gun 12 | . 2 . . 1 . . . . 1 . 1 4 . 1 1 1 Energy Cannon 3 | . . . . . 1 . . . . . . . . . . 2 Ballistic Gun 9 | 2 2 . . . . . . . . . 2 1 . . 2 . Ballistic Cannon 3 | . . . . . . . . . . . . 1 . . 2 . Launcher 6 | . . . . 1 1 1 . . . 2 . 1 . . . . Special Weapon 5 | . . . . . . . 1 . 2 2 . . . . . . Impact Weapon . | . . . . . . . . . . . . . . . . . Slashing Weapon 6 | . . . . . . 1 . . . . . 1 . 1 2 1 Piercing Weapon 8 | . . . . . 2 . . 1 1 2 . 2 . . . . Special Melee Weapon 4 | . . . . . . . . . 1 . 1 1 . . 1 . Unidentified Prototypes 4 | . . . . . 1 . . . 2 . . . 1 . . . Parts Lost 67 | . 5 . . . 2 5 . 2 . 3 . 16 1 . 15 18 Power 9 | . 1 . . . . . . 1 . . . 3 . . 2 2 Propulsion 19 | . . . . . . 3 . . . 1 . 2 1 . 5 7 Utility 18 | . 2 . . . . 1 . . . 1 . 4 . . 6 4 Weapon 21 | . 2 . . . 2 1 . 1 . 1 . 7 . . 2 5 Highest Loss Streak 11 | . 2 . . . 2 3 . 1 . 2 . 5 1 . 11 5 To Critical Strikes 1 | . . . . . . . . . . . . . . . 1 . Average Slot Usage (%) 88 | . 99 100 100 100 72 98 88 74 75 84 90 77 94 99 92 80 Engine 5 | . 14 14 14 14 6 . . 5 7 7 6 6 4 . 1 . Core 3 | . . . . . 2 9 7 1 . . 5 3 7 11 5 7 Treads 12 | . 6 . . . . . 4 . . 18 26 21 21 22 19 17 Leg 5 | . 18 . . . 3 34 13 . . . . . . . . . Wheel 1 | . 3 28 28 28 . . . . . . . . . . . . Flight 1 | . . . . . 8 . 2 7 6 3 . . . . . . Device 3 | . . . . . 9 9 14 1 . . . 1 6 11 7 6 Storage 6 | . 14 14 14 14 9 9 7 7 7 7 6 6 6 5 2 . Processor 11 | . 6 14 14 14 9 16 15 15 15 15 13 11 13 11 11 8 Hackware 6 | . . . . . . . . 13 15 11 6 4 6 5 7 10 Protection 4 | . 7 . . . 7 1 5 6 6 4 6 1 6 5 7 4 Energy Gun 5 | . 19 28 28 28 14 . . . . . 5 5 . 5 . 1 Ballistic Gun 1 | . 8 . . . . . . . . . 5 1 . . . . Slashing Weapon 4 | . . . . . . 4 7 7 7 7 5 . . 2 8 7 Piercing Weapon 3 | . . . . . . 9 6 2 5 3 . 1 6 5 5 4 Special Melee Weapon 1 | . . . . . . . . . . . . 1 6 5 4 2 Naked Turns . | . . . . . . . . . . . . . . . . . Heaviest Build 80 | 12 30 30 30 30 36 36 37 47 48 64 68 68 61 80 78 78 Greatest Support 128 | 40 40 32 32 32 59 62 50 50 50 80 112 126 118 120 128 104 Greatest Overweight (x) 15 | . 1 . . 1 . . . . 15 1 . . 1 . . 15 Average Overweight (x) . | . . . . . . . . . . . . . . . . . Largest Inventory Capacity 15 | 8 15 15 15 15 15 15 15 15 15 15 15 15 15 15 15 5 Average Capacity 12 | 7 9 15 15 15 15 15 15 15 15 15 15 15 15 15 10 5 Most Carried 15 | 6 13 15 15 15 15 15 15 15 15 15 15 15 15 15 15 5 Average Carried 12 | 4 8 14 14 14 14 14 13 14 14 14 14 13 14 14 10 4 Final Capacity 15 | 8 15 15 15 15 15 15 15 15 15 15 15 15 15 15 5 5 Final Carried 15 | 6 13 15 15 15 14 15 15 15 15 15 14 15 15 15 5 5 Class Distribution -------------------- 23% | Scavenger-Gladiator 21% | Mutant 18% | Bothacker-Mutant 13% | Gladiator 12% | Scavenger-Mutant 5% | Bothacker-Gladiator Dominant Class ---------------- Mutant | -10/Materials Mutant | -10/Mines Mutant | -10/Exiles Mutant | -9/Mines Scout | -8/Materials Scavenger-Gladiator | -8/Garrison Scavenger-Gladiator | -7/Factory Gladiator | -7/Garrison Gladiator | -7/Factory Gladiator | -7/Garrison Scavenger-Mutant | -6/Factory Bothacker-Mutant | -6/Garrison Bothacker-Mutant | -6/Factory Scavenger-Gladiator | -5/Factory Scavenger-Gladiator | -5/Garrison Scavenger-Gladiator | -5/Factory Resources | -11 -10 -10 -10 -9 -8 -8 -7 -7 -7 -7 -6 -6 -6 -5 -5 -5 ----------- Run | Yrd Mat Min Exi Min Mat Gar Fac Gar Fac Gar Fac Gar Fac Fac Gar Fac Matter Collected 3089 | 249 460 . . 49 64 186 75 110 60 332 100 669 139 86 385 125 Remotely . | . . . . . . . . . . . . . . . . . Salvage Created 5893 | . 797 . . 20 106 470 172 73 416 697 146 665 260 309 956 806 Parts 281 | . 43 . . 5 7 25 10 3 23 37 9 33 8 10 34 34 Haulers Intercepted 3 | . 1 . . . . . . . 1 . . . 1 . . . Recyclers Shooed 4 | . 4 . . . . . . . . . . . . . . . Parts Field Recycled . | . . . . . . . . . . . . . . . . . Retrieved Matter . | . . . . . . . . . . . . . . . . . Parts Self-Destructed . | . . . . . . . . . . . . . . . . . Prevented . | . . . . . . . . . . . . . . . . . Kills | -11 -10 -10 -10 -9 -8 -8 -7 -7 -7 -7 -6 -6 -6 -5 -5 -5 ------- Run | Yrd Mat Min Exi Min Mat Gar Fac Gar Fac Gar Fac Gar Fac Fac Gar Fac Combat Hostiles Destroyed 118 | . 16 . . 3 3 13 1 2 6 21 4 16 1 5 16 11 Melee 70 | . . . . . . 8 1 2 6 15 . 5 1 5 16 11 Guns 24 | . 16 . . 1 . . . . . . 4 3 . . . . Cannons 2 | . . . . . . . . . . . . 2 . . . . AOE 21 | . . . . 2 3 5 . . . 6 . 5 . . . . Classes Destroyed 13 | . 5 . . . . 3 1 . . 1 . . . . . 3 Worker 1 | . . . . . . . . . . . . . . . . 1 Builder 2 | . . . . . . . . . . . . . . . . 2 Hauler 3 | . 1 . . . . . . . 1 . . . 1 . . . Recycler 5 | . 2 . . . . . 1 . 1 . . . 1 . . . Operator 3 | . . . . . . . 1 . 1 . . . . . . 1 Watcher 4 | . 3 . . . . . . . . . . 1 . . . . Swarmer 32 | . 3 . . 3 . 4 . 1 . 11 3 3 . . 4 . Grunt 51 | . 13 . . . 3 4 . . 5 7 . 8 . 5 . 6 Brawler 1 | . . . . . . . . . . . . . . . . 1 Duelist 6 | . . . . . . 1 . . . . . 2 . . 3 . Sentry 18 | . . . . . . 3 . 1 . 1 1 2 1 . 8 1 Hunter 4 | . . . . . . . . . . 1 . . . . . 3 Programmer 5 | . . . . . . 1 1 . 1 1 . 1 . . . . Thug 1 | . . . . . . . . . . . . . . . 1 . Best Kill Streak 8 | . 8 . . 3 3 5 3 1 3 5 4 4 1 3 6 5 Combat Bots Only 6 | . 4 . . 3 3 5 1 1 3 5 4 4 1 3 6 5 Max Kills in Single Turn 4 | . 1 . . 2 2 4 1 1 1 4 2 2 1 1 1 1 Gunslinging 1 | . . . . . . . . . . . 1 . . . . . Exploded 4 | . . . . 2 2 4 . . . 4 . 2 . . . . Melee 1 | . . . . . . 1 1 1 1 1 . 1 1 1 1 1 Uniques/NPCs Destroyed . | . . . . . . . . . . . . . . . . . Combat | -11 -10 -10 -10 -9 -8 -8 -7 -7 -7 -7 -6 -6 -6 -5 -5 -5 -------- Run | Yrd Mat Min Exi Min Mat Gar Fac Gar Fac Gar Fac Gar Fac Fac Gar Fac Hostile Shots Fired 1304 | . 126 . . 6 19 71 3 95 13 217 41 239 27 2 227 218 Missed 373 | . 32 . . . 5 18 . 39 6 75 11 84 9 . 46 48 Damage Taken 15240 | . 1247 . . 44 219 858 45 556 112 1990 389 3286 139 18 3070 3267 Core 2367 | . 212 . . 7 . 133 . 36 . 279 60 599 26 . 271 744 Absorbed by Shields 697 | . . . . . . . . 35 . 50 . . . 19 593 . Reduced by Siege Mode 17 | . . . . . . . . . . . . 17 . . . . Core Remaining (%) 52 | 100 . . . 12 . 75 . . . 55 . . 19 . . . Volleys Fired 185 | . 73 . . 2 10 3 3 5 1 16 5 58 3 . . 6 Largest 3 | . 2 . . 2 2 1 1 1 1 1 2 3 1 . . 1 Hottest 254 | . 115 . . 115 115 33 5 5 5 36 117 254 66 . . 81 Shots Fired 290 | . 142 . . 4 17 3 3 5 1 16 10 78 5 . . 6 Gun 214 | . 142 . . 3 11 . . . . . 10 44 . . . 4 Cannon 39 | . . . . . 4 . . . . . . 28 5 . . 2 Launcher 16 | . . . . 1 2 3 . . . 4 . 6 . . . . Special 21 | . . . . . . . 3 5 1 12 . . . . . . Kinetic 118 | . 64 . . . . . . . . . 5 44 5 . . . Thermal 123 | . 78 . . 3 15 . . . . . 5 16 . . . 6 Explosive 16 | . . . . 1 2 3 . . . 4 . 6 . . . . Electromagnetic 12 | . . . . . . . . . . . . 12 . . . . Robot Hit Streak 9 | . 6 . . 2 3 3 4 1 2 7 3 8 7 . . 9 Robot Miss Streak 6 | . 5 . . 1 3 . 1 2 . 1 3 6 . . . 3 Penetration Max . | . . . . . . . . . . . . . . . . . Secondary Targets 4 | . 2 . . . . . . . . . 2 . . . . . Max Gunslinging Chain 1 | . 1 . . . . . . . . . 1 . . . . . Shots Hit Robots 387 | . 84 . . 2 7 27 5 11 21 47 9 58 7 8 59 42 Core Hits 190 | . 35 . . 2 7 16 3 3 8 24 6 38 2 6 22 18 Critical Kills . | . . . . . . . . . . . . . . . . . Critical Parts Destroyed . | . . . . . . . . . . . . . . . . . Critical Strikes 33 | . 3 . . . . 4 . 1 1 5 2 1 . 2 7 7 Burn 3 | . 3 . . . . . . . . . . . . . . . Sever 18 | . . . . . . 3 . 1 1 5 2 . . . 1 5 Impale 12 | . . . . . . 1 . . . . . 1 . 2 6 2 Melee Attacks 386 | . . . . . . 52 5 29 30 76 4 31 8 13 78 60 Impact . | . . . . . . . . . . . . . . . . . Slashing 217 | . . . . . . 26 4 29 23 71 4 13 . 3 13 31 Piercing 155 | . . . . . . 26 1 . 7 5 . 17 8 10 52 29 Sneak Attacks 37 | . . . . . . . 1 3 8 1 . . 2 4 14 4 Combat Hostiles 15 | . . . . . . . . 3 5 1 . . . 4 2 . Follow-up Attacks 24 | . . . . . . 1 . . 2 2 . . . 1 9 9 Damage Inflicted 13878 | . 1172 . . 137 244 1097 171 454 1042 1723 291 2515 399 503 2109 2021 Guns 1970 | . 1144 . . 12 64 . . . . . 142 559 . . . 49 Cannons 1028 | . . . . . 17 . . . . . . 850 129 . . 32 Explosions 1543 | . 28 . . 125 163 272 . . . 430 . 525 . . . . Melee 9336 | . . . . . . 825 171 454 1042 1293 149 580 270 503 2109 1940 Ramming 1 | . . . . . . . . . . . . 1 . . . . Kinetic 1667 | . 469 . . . . . . . . . 58 1011 129 . . . Thermal 1168 | . 675 . . 12 81 . . . . . 84 235 . . . 81 Explosive 1543 | . 28 . . 125 163 272 . . . 430 . 525 . . . . Electromagnetic 163 | . . . . . . . . . . . . 163 . . . . Impact . | . . . . . . . . . . . . . . . . . Slashing 4684 | . . . . . . 504 171 454 955 1227 149 41 . 70 335 778 Piercing 4652 | . . . . . . 321 . . 87 66 . 539 270 433 1774 1162 Highest Corruption 14 | . 2 2 2 2 . 5 1 1 1 . . 10 10 . . 14 Average Corruption 4 | . 2 2 2 2 . 4 1 1 1 . . 8 10 . . 6 Corruption Purged 1 | . . . . . . . . . 1 . . . . . . . Corruption Blocked . | . . . . . . . . . . . . . . . . . Effects 89 | . 8 3 . 2 . 1 2 3 2 . . 40 22 . . 6 Message Errors 20 | . 3 . . 1 . 1 . 2 1 . . 8 4 . . . Matter Fused 22 | . . . . 1 . . . . 1 . . 12 7 . . 1 Heat Flow Errors 14 | . 2 2 . . . . . . . . . 7 2 . . 1 Energy Discharges 13 | . 2 . . . . . 1 1 . . . 6 1 . . 2 Parts Rejected 1 | . . . . . . . . . . . . 1 . . . . Data Loss (minor) 10 | . . . . . . . 1 . . . . 3 5 . . 1 Data Loss (major) 2 | . . 1 . . . . . . . . . 1 . . . . Misfires 4 | . . . . . . . . . . . . 2 2 . . . Alerts 2 | . 1 . . . . . . . . . . . 1 . . . Misdirections 1 | . . . . . . . . . . . . . . . . 1 Overload Shots . | . . . . . . . . . . . . . . . . . Overflow Damage 875 | . . . . 8 . . . 14 105 116 . . 94 135 119 284 Projectiles . | . . . . . . . . . . . . . . . . . Explosions 59 | . . . . 8 . . . . . 51 . . . . . . Melee 816 | . . . . . . . . 14 105 65 . . 94 135 119 284 Knockbacks . | . . . . . . . . . . . . . . . . . Impact . | . . . . . . . . . . . . . . . . . Kinetic . | . . . . . . . . . . . . . . . . . Secondary . | . . . . . . . . . . . . . . . . . Self-Inflicted Damage 264 | . 92 . . . . . . . . 22 . 30 . . 120 . Shots 4 | . 1 . . . . . . . . 1 . 1 . . 1 . Rammed 3 | . . . . . . . . . . . . 3 . . . . Targets Rammed 3 | . . . . . . . . . . . . 3 . . . . Kicked . | . . . . . . . . . . . . . . . . . Crushed . | . . . . . . . . . . . . . . . . . Highest Temperature 543 | . 543 121 . 54 404 17 . 3 . 15 398 327 295 . 1 216 Average Temperature 130 | . 133 58 . 24 193 12 . 3 . 7 187 119 117 . 1 75 Received Heat Transfer 2545 | . 522 . . . 162 270 9 78 54 213 . 546 48 8 350 285 Effects 19 | . 11 . . . 2 . . . . . 1 3 2 . . . Shutdowns 5 | . 3 . . . 1 . . . . . 1 . . . . . Interference 10 | . 5 . . . . . . . . . . 3 2 . . . Matter Decay 1 | . 1 . . . . . . . . . . . . . . . Damage (minor) 1 | . . . . . 1 . . . . . . . . . . . Damage (major) 2 | . 2 . . . . . . . . . . . . . . . Siege Activations 2 | . . . . . . . . . . . . 2 . . . . Total Turns 29 | . . . . . . . . . . . . 29 . . . . Longest Duration 21 | . . . . . . . . . . . . 21 . . . . Robots Corrupted 1 | . . . . . . . . . . . . 1 . . . . Combat Hostiles 1 | . . . . . . . . . . . . 1 . . . . Parts Fried . | . . . . . . . . . . . . . . . . . Impact Corruptions . | . . . . . . . . . . . . . . . . . Robots Melted . | . . . . . . . . . . . . . . . . . Combat Hostiles . | . . . . . . . . . . . . . . . . . Parts Melted 3 | . 2 . . . . 1 . . . . . . . . . . Heat Transferred 2849 | . 2072 . . 37 222 . . . . . 111 296 . . . 111 Parts Sabotaged 4 | . . . . . . . . . . . . . . . 4 . Parts Stolen . | . . . . . . . . . . . . . . . . . Parts Stripped . | . . . . . . . . . . . . . . . . . Power Chain Reactions . | . . . . . . . . . . . . . . . . . Alert | -11 -10 -10 -10 -9 -8 -8 -7 -7 -7 -7 -6 -6 -6 -5 -5 -5 ------- Run | Yrd Mat Min Exi Min Mat Gar Fac Gar Fac Gar Fac Gar Fac Fac Gar Fac Peak Influence 1231 | . 217 37 . 79 153 528 364 720 451 1231 762 1063 567 351 1127 674 Initial 646 | . . 37 . . 30 99 277 254 378 273 646 533 557 191 245 591 Average 501 | . 103 37 . 77 78 361 287 538 369 724 678 783 498 269 737 530 Maximum Alert Level 4 | . 1 . . . . 2 1 3 2 4 3 3 2 1 4 2 Low Security (%) 19 | 100 82 100 . 100 100 19 . . . . . . . 44 . . Level 1 23 | . 17 . . . . 29 100 10 98 13 . . 34 55 16 17 Level 2 27 | . . . . . . 50 . 75 1 25 72 15 65 . 15 82 Level 3 28 | . . . . . . . . 14 . 52 27 84 . . 62 . Level 4 1 | . . . . . . . . . . 9 . . . . 5 . Level 5 . | . . . . . . . . . . . . . . . . . High Security . | . . . . . . . . . . . . . . . . . Max Security . | . . . . . . . . . . . . . . . . . Squads Dispatched 20 | . 4 . . . 1 . 3 . 3 . . . 1 4 . 4 Investigation 11 | . 4 . . . . . 1 . 1 . . . . 3 . 2 Extermination 3 | . . . . . . . 1 . 1 . . . . . . 1 Reinforcement 5 | . . . . . 1 . 1 . 1 . . . . 1 . 1 Assault . | . . . . . . . . . . . . . . . . . Garrison 1 | . . . . . . . . . . . . . 1 . . . Intercept . | . . . . . . . . . . . . . . . . . Searches Triggered . | . . . . . . . . . . . . . . . . . Construction Impeded . | . . . . . . . . . . . . . . . . . Haulers Reinforced 1 | . . . . . . . . . 1 . . . . . . . Active Scanning Responses . | . . . . . . . . . . . . . . . . . Cargo Convoy Interrupts . | . . . . . . . . . . . . . . . . . Stealth | -11 -10 -10 -10 -9 -8 -8 -7 -7 -7 -7 -6 -6 -6 -5 -5 -5 --------- Run | Yrd Mat Min Exi Min Mat Gar Fac Gar Fac Gar Fac Gar Fac Fac Gar Fac Distress Signals 2 | . . . . . . . . . . . . 1 . . . 1 Communications Jammed . | . . . . . . . . . . . . . . . . . Distress Signals . | . . . . . . . . . . . . . . . . . Times Spotted 181 | . 23 . . 3 5 17 6 8 7 32 4 24 1 3 31 17 Peak Tracking Total 10 | . 7 . . 3 3 5 3 7 3 6 4 7 1 3 10 8 Tactical Retreats 24 | . 1 . . . 2 2 1 2 3 4 . 5 . 1 2 1 Traps | -11 -10 -10 -10 -9 -8 -8 -7 -7 -7 -7 -6 -6 -6 -5 -5 -5 ------- Run | Yrd Mat Min Exi Min Mat Gar Fac Gar Fac Gar Fac Gar Fac Fac Gar Fac Traps Triggered 19 | . 3 . . . . . . 3 . 5 2 2 . . 2 2 Indirectly . | . . . . . . . . . . . . . . . . . Trap Hack Attempts . | . . . . . . . . . . . . . . . . . Triggered . | . . . . . . . . . . . . . . . . . Disarmed 4 | . . . . . . . . . . . . . . . . 4 Reprogrammed . | . . . . . . . . . . . . . . . . . Reused . | . . . . . . . . . . . . . . . . . Traps Extracted . | . . . . . . . . . . . . . . . . . Installed . | . . . . . . . . . . . . . . . . . Triggered . | . . . . . . . . . . . . . . . . . Machines | -11 -10 -10 -10 -9 -8 -8 -7 -7 -7 -7 -6 -6 -6 -5 -5 -5 ---------- Run | Yrd Mat Min Exi Min Mat Gar Fac Gar Fac Gar Fac Gar Fac Fac Gar Fac Machines Disabled 20 | . 3 . . . . 1 . 4 . 3 . 1 . . 8 . Max in Single Turn 2 | . 1 . . . . 1 . 1 . 1 . 1 . . 2 . Garrison Access 1 | . . . . . . . . . . . . . 1 . . . Garrison Relay 8 | . . . . . . 1 . 1 . 2 . 1 . . 3 . Phase Generator 1 | . . . . . . . . . . . . . . . 1 . Machines Repaired . | . . . . . . . . . . . . . . . . . Machines Dismantled . | . . . . . . . . . . . . . . . . . Machines Sabotaged . | . . . . . . . . . . . . . . . . . Overloaded Fab Kills . | . . . . . . . . . . . . . . . . . Hacking | -11 -10 -10 -10 -9 -8 -8 -7 -7 -7 -7 -6 -6 -6 -5 -5 -5 --------- Run | Yrd Mat Min Exi Min Mat Gar Fac Gar Fac Gar Fac Gar Fac Fac Gar Fac Machines Accessed 38 | . 8 . 2 . 4 1 4 1 4 3 1 . 2 4 1 3 Terminals 25 | . 6 . . . 3 1 2 1 3 3 . . . 3 1 2 Fabricators 1 | . . . . . . . . . . . . . . . . 1 Repair Stations 1 | . . . . . . . 1 . . . . . . . . . Recycling Units 2 | . 2 . . . . . . . . . . . . . . . Scanalyzers 1 | . . . . . . . . . . . . . 1 . . . Garrison Access 6 | . . . . . 1 . 1 . 1 . 1 . 1 1 . . Total Hacks 96 | . 21 . 5 . 14 2 8 1 7 9 1 . 3 10 3 12 Successful 41 | . 7 . 5 . 7 1 3 1 4 2 1 . 1 3 1 5 Failed 54 | . 14 . . . 6 1 5 . 3 7 . . 2 7 2 7 Catastrophic 11 | . 3 . . . . . . . 1 3 . . . 1 . 3 Database Lockouts 1 | . . . . . 1 . . . . . . . . . . . Manual 26 | . 8 . 1 . 5 . . . 4 . . . . 2 . 6 Terminals 75 | . 18 . . . 13 2 5 1 6 9 . . . 9 3 9 Fabricators 3 | . . . . . . . . . . . . . . . . 3 Repair Stations 1 | . . . . . . . 1 . . . . . . . . . Recycling Units 3 | . 3 . . . . . . . . . . . . . . . Scanalyzers 2 | . . . . . . . . . . . . . 2 . . . Garrison Access 7 | . . . . . 1 . 2 . 1 . 1 . 1 1 . . Terminal Hacks 29 | . 4 . 5 . 6 1 1 1 3 2 . . . 2 1 3 Record 6 | . . . 4 . . . . . . . . . . 2 . . Robot Analysis 4 | . 2 . . . 1 . . . 1 . . . . . . . Prototype ID Bank 5 | . 1 . . . 3 . . . 1 . . . . . . . Open Door 1 | . . . . . . 1 . . . . . . . . . . Open DSF 2 | . . . . . . . 1 . 1 . . . . . . . Emergency Access Points 3 | . . . . . . . . 1 . 1 . . . . 1 . Alert Level 1 | . . . . . 1 . . . . . . . . . . . Unreport Threat 2 | . 1 . . . . . . . . . . . . . . 1 Disarm Traps 1 | . . . . . . . . . . . . . . . . 1 Hauler Manifests 1 | . . . . . 1 . . . . . . . . . . . Zone Layout 1 | . . . . . . . . . . . . . . . . 1 Garrison Registry 1 | . . . . . . . . . . 1 . . . . . . Derelict Proto ID Bank 1 | . . . 1 . . . . . . . . . . . . . Fabricator Hacks 2 | . . . . . . . . . . . . . . . . 2 Network Status 1 | . . . . . . . . . . . . . . . . 1 Build 1 | . . . . . . . . . . . . . . . . 1 Repair Station Hacks . | . . . . . . . . . . . . . . . . . Recycling Unit Hacks 3 | . 3 . . . . . . . . . . . . . . . Report Inventory 3 | . 3 . . . . . . . . . . . . . . . Scanalyzer . | . . . . . . . . . . . . . . . . . Garrison Access Hacks 7 | . . . . . 1 . 2 . 1 . 1 . 1 1 . . Unlock Access 5 | . . . . . 1 . 1 . 1 . 1 . . 1 . . Seal Access 1 | . . . . . . . . . . . . . 1 . . . Coupler Status 1 | . . . . . . . 1 . . . . . . . . . Unauthorized Hacks . | . . . . . . . . . . . . . . . . . Terminals . | . . . . . . . . . . . . . . . . . Fabricators . | . . . . . . . . . . . . . . . . . Repair Stations . | . . . . . . . . . . . . . . . . . Recycling Units . | . . . . . . . . . . . . . . . . . Scanalyzers . | . . . . . . . . . . . . . . . . . Garrison Access . | . . . . . . . . . . . . . . . . . Data Cores Recovered 1 | . . . . . . . . . 1 . . . . . . . Used . | . . . . . . . . . . . . . . . . . Hacking Detections 27 | . 7 . . . 3 1 2 . 3 3 . . 1 4 1 2 Full Trace Events 16 | . 5 . . . 2 . 1 . 1 2 . . . 3 . 2 Feedback Events 1 | . . . . . . . 1 . . . . . . . . . Corruption 1 | . . . . . . . 1 . . . . . . . . . Feedback Blocked . | . . . . . . . . . . . . . . . . . Robot Schematics Acquired . | . . . . . . . . . . . . . . . . . Robots Built 3 | . . . . . . . . . . . . . . . . 3 Authchips . | . . . . . . . . . . . . . . . . . Time 134 | . . . . . . . . . . . . . . . . 134 Total Robot Build Rating 12 | . . . . . . . . . . . . . . . . 12 Part Schematics Acquired . | . . . . . . . . . . . . . . . . . Parts Built . | . . . . . . . . . . . . . . . . . Authchips . | . . . . . . . . . . . . . . . . . Time . | . . . . . . . . . . . . . . . . . Total Part Build Rating . | . . . . . . . . . . . . . . . . . Parts Repaired . | . . . . . . . . . . . . . . . . . Time . | . . . . . . . . . . . . . . . . . Parts Recycled . | . . . . . . . . . . . . . . . . . Recycled Matter . | . . . . . . . . . . . . . . . . . Retrieved Matter . | . . . . . . . . . . . . . . . . . Retrieved Components . | . . . . . . . . . . . . . . . . . Parts Scanalyzed . | . . . . . . . . . . . . . . . . . Part Schematics Acquired . | . . . . . . . . . . . . . . . . . Parts Damaged . | . . . . . . . . . . . . . . . . . Bothacking | -11 -10 -10 -10 -9 -8 -8 -7 -7 -7 -7 -6 -6 -6 -5 -5 -5 ------------ Run | Yrd Mat Min Exi Min Mat Gar Fac Gar Fac Gar Fac Gar Fac Fac Gar Fac Used RIF Installer 4 | . . . . . . 1 . . . 1 . 1 . . 1 . Command Fork 2 | . . . . . . . . . . 1 . . . . 1 . Autooverride 1 | . . . . . . . . . . . . 1 . . . . Robots Hacked 16 | . . . . . . . 2 2 1 8 . 1 . . 2 . Non-combat 1 | . . . . . . . . . 1 . . . . . . . Combat 15 | . . . . . . . 2 2 . 8 . 1 . . 2 . Autooverrided 1 | . . . . . . . . . . . . . . . 1 . Robot Hacks Applied 16 | . . . . . . . 2 2 1 9 . 1 . . 1 . no_distress 1 | . . . . . . . . . 1 . . . . . . . scatter_targeting 1 | . . . . . . . . . . . . 1 . . . . disrupt_area 3 | . . . . . . . . . . 3 . . . . . . overload_power 1 | . . . . . . . . . . 1 . . . . . . disable_weapons 2 | . . . . . . . . . . 1 . . . . 1 . reboot_system 1 | . . . . . . . . 1 . . . . . . . . go_dormant 2 | . . . . . . . 1 . . 1 . . . . . . formatsys_high 5 | . . . . . . . 1 1 . 3 . . . . . . Relay Couplers Released 33 | . . . . . . 5 . 5 . 8 . 4 . . 11 . Machine Destruction 33 | . . . . . . 5 . 5 . 8 . 4 . . 11 . Attached 10 | . . . . . . . 1 3 . 1 . 1 . . 4 . Fabnet Peak Effective % . | . . . . . . . . . . . . . . . . . Robots Rewired 8 | . . . . . . . . . . . . . . . 8 . Allies Hacked . | . . . . . . . . . . . . . . . . . Hacks Repelled . | . . . . . . . . . . . . . . . . . Allies | -11 -10 -10 -10 -9 -8 -8 -7 -7 -7 -7 -6 -6 -6 -5 -5 -5 -------- Run | Yrd Mat Min Exi Min Mat Gar Fac Gar Fac Gar Fac Gar Fac Fac Gar Fac Total Allies 19 | . . . . . . 2 1 1 . 3 . . . . 9 3 Largest Group 4 | . . . . . . 2 1 1 . 2 . . . . 4 3 Highest-Rated Group 172 | . . . . . . 56 16 32 . 28 . . . . 172 90 Highest-Rated Ally 49 | . . . . . . 31 16 32 . 16 . . . . 49 30 Total Orders . | . . . . . . . . . . . . . . . . . Ally Attacks 95 | . . . . . . 15 2 23 . 4 . . . . 49 2 Total Damage 2658 | . . . . . . 184 30 534 . 47 . . . . 1826 37 Kills 24 | . . . . . . 2 1 8 . . . . . . 13 . Allies Corrupted . | . . . . . . . . . . . . . . . . . Allies Melted . | . . . . . . . . . . . . . . . . . Intel | -11 -10 -10 -10 -9 -8 -8 -7 -7 -7 -7 -6 -6 -6 -5 -5 -5 ------- Run | Yrd Mat Min Exi Min Mat Gar Fac Gar Fac Gar Fac Gar Fac Fac Gar Fac Robot Analysis Total 4 | . 2 . . . 1 . . . 1 . . . . . . . Derelict Logs Recovered . | . . . . . . . . . . . . . . . . . Drone Launches . | . . . . . . . . . . . . . . . . . Drone Recoveries . | . . . . . . . . . . . . . . . . . Exploration | -11 -10 -10 -10 -9 -8 -8 -7 -7 -7 -7 -6 -6 -6 -5 -5 -5 ------------- Run | Yrd Mat Min Exi Min Mat Gar Fac Gar Fac Gar Fac Gar Fac Fac Gar Fac Turns Passed 10899 | 83 1248 197 222 190 228 770 320 476 680 1325 251 1488 613 374 1520 914 Spaces Moved 7086 | 45 743 196 219 171 252 495 306 498 766 862 114 726 362 197 724 410 Core 37 | 3 . . . . . . . . 1 . . . . . . 33 Treads 3045 | 42 104 . . . . . . . . 399 114 726 362 197 724 377 Legs 1154 | . 499 . . . 16 495 144 . . . . . . . . . Wheels 726 | . 140 196 219 171 . . . . . . . . . . . . Hover . | . . . . . . . . . . . . . . . . . Flight 2124 | . . . . . 236 . 162 498 765 463 . . . . . . Fastest Speed 50 | 50 100 100 100 100 50 123 50 50 50 50 160 145 145 155 155 50 Average Speed 114 | 152 121 100 100 102 54 124 84 50 50 105 165 156 154 155 155 163 Slowest Speed 800 | 160 160 100 100 110 125 125 123 50 800 170 170 160 232 156 160 800 Overloaded Moves . | . . . . . . . . . . . . . . . . . Propulsion Burnouts . | . . . . . . . . . . . . . . . . . Robots Hopped 2 | . . . . . . . . . . 2 . . . . . . Cave-ins Triggered 2 | . . . . . . . . . . . . 2 . . . . Exploration Rate (%) 35 | 4 85 42 61 57 13 59 6 44 16 85 3 52 6 6 56 9 Regions Visited 16 Branch Regions 3 Pre-discovered Areas 1 | . . . 1 . . . . . . . . . . . . . Known Exits Taken 9 | . 1 1 1 1 1 . 1 . 1 . 1 . . 1 . . Unknown Exits Taken 2 | 1 . . . . . . . . . . . . 1 . . . Scrap Searched 1 | . . . . 1 . . . . . . . . . . . . Spaces Dug 56 | . . . . . . 10 . 1 4 4 . 28 3 3 . 3 Terrain Destroyed 272 | . 38 . . 9 19 13 . 1 4 29 1 65 4 3 83 3 Melee 24 | . . . . . . 1 . 1 4 4 . 5 3 3 . 3 Projectile 6 | . . . . . . . . . . . 1 4 1 . . . AOE 242 | . 38 . . 9 19 12 . . . 25 . 56 . . 83 . Terrain Rammed . | . . . . . . . . . . . . . . . . . Walls Destroyed . | . . . . . . . . . . . . . . . . . Machines Disabled . | . . . . . . . . . . . . . . . . . Actions | -11 -10 -10 -10 -9 -8 -8 -7 -7 -7 -7 -6 -6 -6 -5 -5 -5 --------- Run | Yrd Mat Min Exi Min Mat Gar Fac Gar Fac Gar Fac Gar Fac Fac Gar Fac Total 9086 | 56 945 197 223 182 328 596 367 686 1023 1155 167 948 398 241 1016 558 Wait 898 | . 77 . . 2 34 26 33 99 199 103 17 74 11 25 123 75 Move 7064 | 44 742 195 218 170 251 493 305 496 765 857 114 724 361 196 723 410 Hop 2 | . . . . . . . . . . 2 . . . . . . Pick Up 112 | 6 14 2 1 2 11 9 7 9 6 9 5 15 2 3 10 1 Fast Attach 87 | 6 3 . . . 1 3 1 1 10 1 3 11 5 1 27 14 Attach 60 | . 7 . . . 9 3 4 2 1 6 3 12 1 2 9 1 Detach 18 | . 1 . . . 1 . 3 1 2 1 2 3 . . 4 . Swap 62 | . 13 . . 3 3 2 1 6 . 10 4 7 1 1 11 . Drop 136 | . 15 . 4 3 8 7 6 11 16 4 10 9 6 3 28 6 Fire 185 | . 73 . . 2 10 3 3 5 1 16 5 58 3 . . 6 Melee 339 | . . . . . . 49 4 29 23 71 4 31 8 10 65 45 Ram . | . . . . . . . . . . . . . . . . . Kick . | . . . . . . . . . . . . . . . . . Crush 3 | . . . . . . . . . . . . 3 . . . . Escape Stasis 100 | . . . . . . . . 26 . 73 . 1 . . . . Rewire 20 | . . . . . . 1 . 1 . 2 . . . . 16 . Trap . | . . . . . . . . . . . . . . . . . Miscellaneous . | . . . . . . . . . . . . . . . . . Route ------- -11/Scrapyard -10/Materials (discovered 4 exits: *Mat x2 / *Min x2) -10/Mines -10/Exiles -9/Mines -8/Materials (discovered 2 exits: *Sto / Gar) -8/Garrison (discovered 2 exits: *Fac x2) -7/Factory -7/Garrison -7/Factory (discovered 2 exits: *Fac / Gar) -7/Garrison (discovered 3 exits: *Fac x3) -6/Factory -6/Garrison -6/Factory -5/Factory -5/Garrison -5/Factory History --------- Turn | Location | Event 50 | -11/Scrapyard | Discovered new exit (range 12) 84 | -11/Scrapyard | Entered Materials 316 | -10/Materials | Build established: Mutant 525 | -10/Materials | Discovered new exit (range 7) 631 | -10/Materials | Core integrity fell below 50% 751 | -10/Materials | Discovered new exit (range 8) 796 | -10/Materials | Identified exit to Materials 822 | -10/Materials | Discovered new exit (range 9) 831 | -10/Materials | Identified exit to Mines 1021 | -10/Materials | Core integrity fell below 20% 1047 | -10/Materials | Discovered exit to Materials (range 16) 1332 | -10/Materials | Entered Mines 1455 | -10/Mines | Deemed a non-threat by the Exiles lab entrance 1456 | -10/Mines | Discovered new exit (range 5) 1459 | -10/Mines | Identified exit to Exiles 1529 | -10/Mines | Entered Exiles 1556 | -10/Exiles | Met 8R-AWN 1570 | -10/Exiles | Met EX-HEX 1600 | -10/Exiles | Met EX-BIN 1612 | -10/Exiles | Aligned with FarCom system 1613 | -10/Exiles | Given EX-Vault access code 1636 | -10/Exiles | Opened EX-Vault 1648 | -10/Exiles | Found Flying Fortress v7 1668 | -10/Exiles | Warned to stay clear of 0b10 Research branches 1697 | -10/Exiles | Met EX-DEC 1703 | -10/Exiles | Learned location of Zion (-6) 1741 | -10/Exiles | Discovered new exit (range 12) 1750 | -10/Exiles | Identified exit to Mines 1751 | -10/Exiles | Left Exiles lab with Flying Fortress v7 1751 | -10/Exiles | Entered Mines 1789 | -9/Mines | Found a damaged Exp. Sensor Array with a note attached 1792 | -9/Mines | Found Prototype Device 1899 | -9/Mines | Discovered new exit (range 15) 1940 | -9/Mines | Identified exit to Materials 1941 | -9/Mines | Entered Materials 1941 | -8/Materials | Evolved 4 slots: Propulsion x2, Utility x2 1941 | -8/Materials | Identified Exp. Sensor Array 1972 | -8/Materials | Central database locked down 1986 | -8/Materials | Discovered new exit (range 5) 1989 | -8/Materials | Identified exit to Storage 2017 | -8/Materials | Identified exit to Garrison 2169 | -8/Materials | Entered Garrison 2203 | -8/Garrison | Installed Relay Interface Framework 2308 | -8/Garrison | Triggered checkpoint 2342 | -8/Garrison | Triggered checkpoint 2455 | -8/Garrison | Discovered new exit (range 15) 2471 | -8/Garrison | Identified exit to Factory 2505 | -8/Garrison | Rescued a captive Derelict 2507 | -8/Garrison | Rescued a captive Derelict 2594 | -8/Garrison | Triggered checkpoint 2614 | -8/Garrison | Garrison Relay disabled 2816 | -8/Garrison | Triggered checkpoint 2818 | -8/Garrison | Build established: Scavenger-Gladiator 2865 | -8/Garrison | Lost 3 parts (3n) 2915 | -8/Garrison | Discovered exit to Factory (range 6) 2939 | -8/Garrison | Entered Factory 2939 | -7/Factory | Evolved 2 slots: Utility x2 3106 | -7/Factory | Identified exit to DSF 3259 | -7/Factory | Identified exit to Garrison 3259 | -7/Factory | Entered Garrison 3259 | -7/Garrison | Accompanied by 1 ally 3328 | -7/Garrison | Heavy support dispatched to Factory 3446 | -7/Garrison | Triggered checkpoint 3476 | -7/Garrison | Garrison Relay disabled 3523 | -7/Garrison | H-XX Assembler disabled 3676 | -7/Garrison | Triggered checkpoint 3722 | -7/Garrison | Triggered checkpoint 3729 | -7/Garrison | Discovered new exit (range 12) 3734 | -7/Garrison | Identified exit to Factory 3735 | -7/Garrison | Entered Factory 3832 | -7/Factory | Build established: Gladiator 3896 | -7/Factory | Identified exit to DSF 4280 | -7/Factory | Discovered new exit (range 13) 4286 | -7/Factory | Identified exit to Factory 4415 | -7/Factory | Identified exit to Garrison 4415 | -7/Factory | Entered Garrison 4456 | -7/Garrison | Triggered checkpoint 4493 | -7/Garrison | Garrison Relay disabled 4760 | -7/Garrison | Triggered checkpoint 4789 | -7/Garrison | Build established: Bothacker-Mutant 4817 | -7/Garrison | Discovered exit to Factory (range 5) 4828 | -7/Garrison | Discovered exit to Factory (range 54) 4828 | -7/Garrison | Discovered exit to Factory (range 68) 4828 | -7/Garrison | Discovered exit to Factory (range 12) 4880 | -7/Garrison | Expanded RIF knowledge: Command Fork 5273 | -7/Garrison | Build established: Gladiator 5495 | -7/Garrison | Garrison Relay disabled 5498 | -7/Garrison | Triggered checkpoint 5740 | -7/Garrison | Entered Factory 5740 | -6/Factory | Evolved 2 slots: Power x1, Weapon x1 5991 | -6/Factory | Identified exit to Garrison 5991 | -6/Factory | Entered Garrison 6036 | -6/Garrison | Spotted B-75 Beast 6041 | -6/Garrison | Spotted B-75 Beast 6056 | -6/Garrison | Triggered checkpoint 6081 | -6/Garrison | Discovered new exit (range 5) 6245 | -6/Garrison | Crushed by falling debris 6385 | -6/Garrison | Spotted B-75 Beast 6472 | -6/Garrison | Crushed by falling debris 6557 | -6/Garrison | Build established: Bothacker-Mutant 6610 | -6/Garrison | Found Enh. Force Lance 6711 | -6/Garrison | Lost 5 parts (1p1n2u1w) 6908 | -6/Garrison | Triggered checkpoint 6909 | -6/Garrison | Core integrity fell below 50% 6917 | -6/Garrison | System corruption reached 10% 6983 | -6/Garrison | Lost 4 parts (1p1n1u1w) 7054 | -6/Garrison | Triggered checkpoint 7126 | -6/Garrison | Expanded RIF knowledge: Autooverride 7247 | -6/Garrison | Garrison Relay disabled 7479 | -6/Garrison | Entered Factory 7549 | -6/Factory | Discovered new exit (range 6) 7928 | -6/Factory | Core integrity fell below 20% 8092 | -6/Factory | Entered another Factory area 8092 | -5/Factory | Evolved 2 slots: Utility x1, Weapon x1 8458 | -5/Factory | Identified exit to Garrison 8466 | -5/Factory | Entered Garrison 8494 | -5/Garrison | Expanded RIF knowledge: Command Fork 8620 | -5/Garrison | Triggered checkpoint 8710 | -5/Garrison | Phase Generator disabled 8740 | -5/Garrison | Triggered checkpoint 8772 | -5/Garrison | Garrison Relay disabled 8891 | -5/Garrison | Garrison Relay disabled 8990 | -5/Garrison | Spotted B-75 Beast 9066 | -5/Garrison | Build established: Bothacker-Gladiator 9134 | -5/Garrison | Triggered checkpoint 9201 | -5/Garrison | Allies destroyed B-75 Beast 9277 | -5/Garrison | Triggered checkpoint 9354 | -5/Garrison | Lost 11 parts (1p4n4u2w) 9437 | -5/Garrison | Heavy support dispatched to Factory 9469 | -5/Garrison | Garrison Relay disabled 9497 | -5/Garrison | Build established: Scavenger-Gladiator 9674 | -5/Garrison | Discovered new exit (range 14) 9765 | -5/Garrison | Lost 6 allies 9805 | -5/Garrison | Heavy support dispatched to Factory 9986 | -5/Garrison | Entered Factory 10477 | -5/Factory | Lost 5 parts (1p2n2w) 10586 | -5/Factory | Lost 4 parts (2n2u) 10636 | -5/Factory | Fabricated L-41 Fighter (x3) 10742 | -5/Factory | Core integrity fell below 50% 10759 | -5/Factory | Lost 3 allies 10841 | -5/Factory | Lost 5 parts (1p3n1w) 10866 | -5/Factory | Core integrity fell below 20% 10869 | -5/Factory | System corruption reached 10% 10893 | -5/Factory | Lost 3 parts (1u2w) 10900 | -5/Factory | Destroyed by P-70 Sage with High-powered Shock Rifle Last Messages --------------- 10865_ K-01 Serf collects debris. 10865_ Dropped Adv. Actuator Array. 10865_ Fusion Modulator explodes. 10866_ Acquired Unknown Energy Cannon. 10866_ Identified Hvy. Ion Cannon. 10867_ K-01 Serf collects debris. 10870_ Dropped Hvy. Ion Cannon. 10870_ K-01 Serf collects debris. 10882_ System corrupted: Energy discharge (-29). 10885_ K-01 Serf collects debris. 10885_ Acquired Med. Treads. 10888_ K-01 Serf collects debris. 10888_ Acquired Med. Treads. 10890_ K-01 Serf collects debris. 10893_ Relay Coupler [Sentry] destroyed. 10894_ K-01 Serf collects debris. 10896_ P-70 Sage resets P-70 Sage, system corruption cleaned. 10897_ Acquired Hvy. Ion Cannon. 10898_ K-01 Serf collects debris. Map ----- +----------------------------------------------------+ | ????????????????????????????????????# " " # | | ????????????????????????????????????# " " ! # | | ??????????????????????????????????? # " " + | | ??????????????????????????????????? # " " # | | ??????????????????????????????????? # " " # | | ??????????????????????????????????? # " " # | | ??????????????????????????????????? # "%" # | | ?????????????????????????? ?????? #%% # | | ????????????????????????+ +???? # # | | ????????????#???????????# #???? ####+######### | | ????????????# ??????????# #???? #??#%#???# ### | | ???????????## ########### #???? #??# #???# #?# | | ???????????? """"" #???? #??# #?###?### | | ????????????? "" F" % #???? #??# #?# # | | ?????????????? "" "" #????##??# #?# # | | ??????????????? % #????????# #?# # | | ???????????????? k #??????### ### # | | ?????????????????# ##?????# # # | | ?????????????????# ;####### # # | | ?????????????????# + # | | ?????????????????# ! k ## T## # # | | ?????????????????# / [!###### # """ # | | ?????????????????# %[#????###"### """ # | | ?????????????????# !*! *!!#?????# ! # """ # | | ??????????????######p;;;;;;;;;#%####### # # | | ??????????????# p @ # ##!%==*%[" ####### | | ??????????????# """ """ ############ "T #?????? | | ??????????????# """ """ #??????????# "" #?????? | | ??????????????# """ """ #??????????# #?????? | | ??????????????# #??????????######?????? | | ??????????????##############?????????????????????? | | | | | | | | | | | | | | | | | | | | | | | | | | | | | | | | | | | | | | | +----------------------------------------------------+ Best States ------------- Heat Dissipation 59 Energy Generation 34 Energy Capacity 880 Matter Stores 300 Matter Capacity 300 Sight Range 16 Robot Scan Range 20 Terrain Scan Range 14 Terrain Scan Density 10 ECM Strength 2 Armor Coverage 675 Resistance: EX 50 Weapon Cycling 20 Melee Speed Boost 40 Evasion (%) 60 Melee Accuracy 8 Target Analysis 5 Recoil Reduction 4 Relay Coupler Types 2 Relay Coupler Value 56 Item Schematics ----------------- None Robot Schematics ------------------ None Fabricated ------------ L-41 Fighter | x3 | -5/Factory | Preloaded Alien Tech Used ----------------- None Achievements -------------- Assassin Assimilation Complete Dramatic Entrance Error 47 Factory Defaults Challenges ------------ None Game ------ Seed AuthchipSmartbombDatajack Manual? 0 Play Time 02:20:47 Cumulative 28.9 hours Start 2024.04.06 @ 15:44:30 End 2024.04.06 @ 18:06:26 Sessions 1 Manual Loads 0 Difficulty Rogue Special Mode None Game No. 19 Rogue 19 Adventurer 0 Explorer 0 Win Type - Total 0 Types 0/0/0/0/0/0/0/0/0 Lore% 24 Gallery% 34 Achievement% 27 Wizard Run 0 Options --------- Layout 2 ASCII 0 Keyboard 1 Movement Numpad Keybinds 0 Fullscreen 1 Font 24/Smallcaps Map View 50x44 Zoom Use 0% Tactical HUD 1 Map Filters NONE Filters NONE Steam 1 RUN: b0de5a55-f26b-4d80-9a48-860328d7cc75